Cogmind - Beta 13 @@@ ROGUE MODE // 2024.05.30 @ 01:22:52 Player: Sherlockkat Result: Destroyed by NV-FM8(R) with Subdweller Beam Cannon Performance ------------- Evolutions (0) 0 Regions Visited (3) 600 Robots Destroyed (10) 50 Value Destroyed (208) 208 Prototype IDs (0) 0 Alien Tech Used (0) 0 Bonus (-269) -269 TOTAL SCORE: 589 Bonus ------- Follower Combat Kills 30 Friendly Fire -299 Cogmind --------- Core Integrity 0/250 Matter 258/300 Energy 34/250 System Corruption 0% Temperature Cool (9) Movement Walking (260) Ox2 Location -10/Subcaves Parts ------- > --- POWER (1) -------- Ion Engine > --- PROPULSION (2) --- Aluminum Leg > --- UTILITY (2) ------ Large Storage Unit Subdweller Optics > --- WEAPON (2) ------- Grenade Launcher > --- INVENTORY (15) --- Aluminum Leg Aluminum Leg Aluminum Leg Improved Heat Sink High-capacity Storage Unit Rocket Launcher Multitool Peak State ------------ > --- POWER ------------ Ion Engine > --- PROPULSION ------- Wheel Compact Wheel > --- UTILITY ---------- Large Storage Unit Subdweller Optics > --- WEAPON ----------- EM Pulse Gun Light Assault Rifle > --- INVENTORY -------- Ion Engine Aluminum Leg Aluminum Leg Aluminum Leg Aluminum Leg Compact Wheel High-capacity Storage Unit EM Pulse Gun Grenade Launcher Rocket Launcher [Rating: 9] Favorites ----------- Power Ion Engine Engine Ion Engine Propulsion Compact Wheel Leg Aluminum Leg Wheel Compact Wheel Utility Large Storage Unit Device Subdweller Optics Storage Large Storage Unit Weapon EM Pulse Gun Energy Gun EM Pulse Gun Ballistic Gun Light Assault Rifle Launcher Grenade Launcher Build | -11 -10 -10 -10 ------- Run | Yrd Mat Min Sub Slots Evolved . | . . . . Power . | . . . . Propulsion . | . . . . Utility . | . . . . Weapon . | . . . . Parts Attached 24 | 8 3 1 12 Power 3 | 1 1 . 1 Engine 3 | 1 1 . 1 Core . | . . . . Reactor . | . . . . Propulsion 6 | 4 . . 2 Treads . | . . . . Leg 4 | 2 . . 2 Wheel 2 | 2 . . . Hover . | . . . . Flight . | . . . . Utility 4 | 1 2 . 1 Device 1 | . . . 1 Storage 3 | 1 2 . . Processor . | . . . . Hackware . | . . . . Protection . | . . . . Artifact . | . . . . Weapon 11 | 2 . 1 8 Energy Gun 4 | 1 . . 3 Energy Cannon . | . . . . Ballistic Gun 3 | 1 . . 2 Ballistic Cannon . | . . . . Launcher 4 | . . 1 3 Special Weapon . | . . . . Impact Weapon . | . . . . Slashing Weapon . | . . . . Piercing Weapon . | . . . . Special Melee Weapon . | . . . . Unidentified Prototypes . | . . . . Parts Lost 6 | . . . 6 Power 1 | . . . 1 Propulsion 2 | . . . 2 Utility . | . . . . Weapon 3 | . . . 3 Highest Loss Streak 5 | . . . 5 To Critical Strikes . | . . . . Average Slot Usage (%) 90 | . 87 85 93 Engine 13 | . 14 14 13 Leg 8 | . . . 15 Wheel 18 | . 28 28 11 Device 6 | . . . 11 Storage 14 | . 16 14 14 Energy Gun 14 | . 14 14 14 Ballistic Gun 11 | . 14 12 10 Launcher 1 | . . 1 1 Naked Turns . | . . . . Heaviest Build 32 | 13 28 30 32 Greatest Support 26 | 26 26 26 26 Greatest Overweight (x) 2 | . 1 1 2 Average Overweight (x) . | . . 1 1 Largest Inventory Capacity 15 | 8 15 15 15 Average Capacity 13 | 6 11 15 15 Most Carried 11 | 4 10 10 11 Average Carried 8 | 2 6 9 9 Final Capacity 15 | 8 15 15 15 Final Carried 10 | 4 9 10 7 Class Distribution -------------------- 100% | Mutant Dominant Class ---------------- Mutant | -10/Materials Mutant | -10/Mines Mutant | -10/Subcaves Resources | -11 -10 -10 -10 ----------- Run | Yrd Mat Min Sub Matter Collected 457 | 255 71 . 131 Remotely . | . . . . Salvage Created 484 | 57 282 . 145 Parts 31 | 2 11 5 13 Haulers Intercepted . | . . . . Recyclers Shooed 1 | . 1 . . Parts Field Recycled . | . . . . Retrieved Matter . | . . . . Parts Self-Destructed . | . . . . Prevented . | . . . . Kills | -11 -10 -10 -10 ------- Run | Yrd Mat Min Sub Combat Hostiles Destroyed 5 | . 4 . 1 Guns 4 | . 3 . 1 AOE 1 | . 1 . . Classes Destroyed 5 | 1 1 1 2 Tunneler 1 | . . 1 . Recycler 2 | 1 1 . . Grunt 6 | . 4 . 2 Artisan 2 | . . . 2 Subdweller 1 | . . . 1 Best Kill Streak 3 | 1 3 1 1 Combat Bots Only 2 | . 2 . 1 Max Kills in Single Turn 2 | 1 1 1 2 Gunslinging . | . . . . Exploded 1 | . 1 . . Melee . | . . . . Uniques/NPCs Destroyed . | . . . . Combat | -11 -10 -10 -10 -------- Run | Yrd Mat Min Sub Hostile Shots Fired 34 | . 10 . 24 Missed 6 | . 3 . 3 Damage Taken 790 | . 104 30 656 Core 250 | . . 10 240 Absorbed by Shields . | . . . . Core Remaining (%) 100 | 100 . . . Volleys Fired 43 | 3 13 4 23 Largest 2 | 2 2 2 2 Hottest 80 | 60 60 60 80 Shots Fired 75 | 6 26 5 38 Gun 69 | 6 26 2 35 Cannon . | . . . . Launcher 6 | . . 3 3 Special . | . . . . Kinetic 29 | 3 13 1 12 Thermal . | . . . . Explosive 6 | . . 3 3 Electromagnetic 40 | 3 13 1 23 Robot Hit Streak 27 | 3 13 2 27 Robot Miss Streak 4 | 1 4 1 . Penetration Max . | . . . . Secondary Targets . | . . . . Shots Hit Robots 51 | 5 19 2 25 Core Hits 23 | 2 10 3 8 Critical Kills . | . . . . Critical Parts Destroyed . | . . . . Critical Strikes . | . . . . Melee Attacks . | . . . . Impact . | . . . . Slashing . | . . . . Piercing . | . . . . Sneak Attacks . | . . . . Combat Hostiles . | . . . . Follow-up Attacks . | . . . . Damage Inflicted 683 | 73 272 97 241 Guns 376 | 73 201 10 92 Cannons . | . . . . Explosions 307 | . 71 87 149 Melee . | . . . . Ramming . | . . . . Kinetic 151 | 28 71 10 42 Thermal 165 | . 71 . 94 Explosive 142 | . . 87 55 Electromagnetic 225 | 45 130 . 50 Impact . | . . . . Slashing . | . . . . Piercing . | . . . . Highest Corruption . | . . . . Average Corruption . | . . . . Corruption Purged . | . . . . Corruption Blocked . | . . . . Overload Shots . | . . . . Overflow Damage . | . . . . Projectiles . | . . . . Explosions . | . . . . Melee . | . . . . Knockbacks . | . . . . Impact . | . . . . Kinetic . | . . . . Secondary . | . . . . Self-Inflicted Damage 78 | . 21 31 26 Shots 5 | . 2 1 2 Rammed . | . . . . Targets Rammed . | . . . . Kicked . | . . . . Crushed . | . . . . Highest Temperature 251 | 20 108 20 251 Average Temperature 55 | 15 39 15 119 Received Heat Transfer 487 | . 48 . 439 Siege Activations . | . . . . Robots Corrupted . | . . . . Combat Hostiles . | . . . . Parts Fried . | . . . . Impact Corruptions . | . . . . Robots Melted . | . . . . Combat Hostiles . | . . . . Parts Melted 1 | . . . 1 Heat Transferred 250 | . 100 . 150 Parts Sabotaged . | . . . . Parts Stolen . | . . . . Parts Stripped . | . . . . Power Chain Reactions 3 | . 2 . 1 Alert | -11 -10 -10 -10 ------- Run | Yrd Mat Min Sub Peak Influence 204 | 5 204 90 . Initial 79 | . 3 79 . Average 74 | . 93 79 . Maximum Alert Level 1 | . 1 . . Low Security (%) 99 | 100 98 100 . Level 1 . | . 1 . . Level 2 . | . . . . Level 3 . | . . . . Level 4 . | . . . . Level 5 . | . . . . High Security . | . . . . Max Security . | . . . . Squads Dispatched 1 | . 1 . . Investigation . | . . . . Extermination . | . . . . Reinforcement 1 | . 1 . . Assault . | . . . . Garrison . | . . . . Intercept . | . . . . Searches Triggered . | . . . . Construction Impeded . | . . . . Haulers Reinforced . | . . . . Active Scanning Responses . | . . . . Cargo Convoy Interrupts . | . . . . Stealth | -11 -10 -10 -10 --------- Run | Yrd Mat Min Sub Distress Signals . | . . . . Communications Jammed . | . . . . Distress Signals . | . . . . Times Spotted 9 | . 6 . 3 Peak Tracking Total 2 | . 2 . 1 Tactical Retreats 1 | . 1 . . Traps | -11 -10 -10 -10 ------- Run | Yrd Mat Min Sub Traps Triggered 1 | . . . 1 Indirectly . | . . . . Trap Hack Attempts . | . . . . Triggered . | . . . . Disarmed . | . . . . Reprogrammed . | . . . . Reused . | . . . . Traps Extracted . | . . . . Installed . | . . . . Triggered . | . . . . Machines | -11 -10 -10 -10 ---------- Run | Yrd Mat Min Sub Machines Disabled . | . . . . Max in Single Turn . | . . . . Machines Repaired . | . . . . Machines Dismantled . | . . . . Machines Sabotaged . | . . . . Overloaded Fab Kills . | . . . . Hacking | -11 -10 -10 -10 --------- Run | Yrd Mat Min Sub Machines Accessed 1 | . 1 . . Terminals 1 | . 1 . . Fabricators . | . . . . Repair Stations . | . . . . Recycling Units . | . . . . Scanalyzers . | . . . . Garrison Access . | . . . . Total Hacks 3 | . 3 . . Successful 2 | . 2 . . Failed 1 | . 1 . . Catastrophic . | . . . . Database Lockouts . | . . . . Manual . | . . . . Terminals 3 | . 3 . . Fabricators . | . . . . Repair Stations . | . . . . Recycling Units . | . . . . Scanalyzers . | . . . . Garrison Access . | . . . . Terminal Hacks 2 | . 2 . . Hauler Manifests 1 | . 1 . . Zone Layout 1 | . 1 . . Fabricator Hacks . | . . . . Repair Station Hacks . | . . . . Recycling Unit Hacks . | . . . . Scanalyzer . | . . . . Garrison Access Hacks . | . . . . Unauthorized Hacks . | . . . . Terminals . | . . . . Fabricators . | . . . . Repair Stations . | . . . . Recycling Units . | . . . . Scanalyzers . | . . . . Garrison Access . | . . . . Data Cores Recovered . | . . . . Used . | . . . . Hacking Detections 1 | . 1 . . Full Trace Events . | . . . . Feedback Events . | . . . . Feedback Blocked . | . . . . Robot Schematics Acquired . | . . . . Robots Built . | . . . . Authchips . | . . . . Time . | . . . . Total Robot Build Rating . | . . . . Part Schematics Acquired . | . . . . Parts Built . | . . . . Authchips . | . . . . Time . | . . . . Total Part Build Rating . | . . . . Parts Repaired . | . . . . Time . | . . . . Parts Recycled . | . . . . Recycled Matter . | . . . . Retrieved Matter . | . . . . Retrieved Components . | . . . . Parts Scanalyzed . | . . . . Part Schematics Acquired . | . . . . Parts Damaged . | . . . . Bothacking | -11 -10 -10 -10 ------------ Run | Yrd Mat Min Sub Used RIF Installer . | . . . . Robots Hacked . | . . . . Non-combat . | . . . . Combat . | . . . . Robot Hacks Applied . | . . . . Relay Couplers Released . | . . . . Fabnet Peak Effective % . | . . . . Robots Rewired . | . . . . Allies Hacked . | . . . . Hacks Repelled . | . . . . Allies | -11 -10 -10 -10 -------- Run | Yrd Mat Min Sub Total Allies 3 | . . 3 . Largest Group 3 | . . 3 3 Highest-Rated Group 40 | . . 40 40 Highest-Rated Ally 16 | . . 16 16 Total Orders . | . . . . Ally Attacks 9 | . . . 9 Total Damage 131 | . . . 131 Kills 1 | . . . 1 Allies Corrupted . | . . . . Allies Melted . | . . . . Intel | -11 -10 -10 -10 ------- Run | Yrd Mat Min Sub Robot Analysis Total . | . . . . Derelict Logs Recovered 1 | . . 1 . Drone Launches . | . . . . Drone Recoveries . | . . . . Exploration | -11 -10 -10 -10 ------------- Run | Yrd Mat Min Sub Turns Passed 1080 | 74 217 214 575 Spaces Moved 726 | 55 158 178 335 Core 5 | 5 . . . Treads . | . . . . Legs 152 | 11 . . 141 Wheels 569 | 39 158 178 194 Hover . | . . . . Flight . | . . . . Fastest Speed 50 | 50 90 105 105 Average Speed 119 | 92 95 105 142 Slowest Speed 260 | 120 105 105 260 Overloaded Moves . | . . . . Propulsion Burnouts . | . . . . Robots Hopped . | . . . . Cave-ins Triggered . | . . . . Exploration Rate (%) 28 | 5 28 53 28 Regions Visited 3 Branch Regions 2 Pre-discovered Areas . | . . . . Known Exits Taken . | . . . . Unknown Exits Taken 3 | 1 1 1 . Scrap Searched . | . . . . Spaces Dug 4 | . . 4 . Terrain Destroyed 41 | . 11 13 17 Melee . | . . . . Projectile . | . . . . AOE 41 | . 11 13 17 Terrain Rammed . | . . . . Walls Destroyed . | . . . . Machines Disabled . | . . . . Actions | -11 -10 -10 -10 --------- Run | Yrd Mat Min Sub Total 865 | 69 201 199 396 Wait 52 | . 16 16 20 Move 723 | 54 157 177 335 Hop . | . . . . Pick Up 13 | 2 7 1 3 Fast Attach 10 | 8 1 . 1 Attach 5 | . . . 5 Detach 4 | 2 1 . 1 Swap 9 | . 2 1 6 Drop 6 | . 4 . 2 Fire 43 | 3 13 4 23 Melee . | . . . . Ram . | . . . . Kick . | . . . . Crush . | . . . . Escape Stasis . | . . . . Rewire . | . . . . Trap . | . . . . Miscellaneous . | . . . . Route ------- -11/Scrapyard -10/Materials -10/Mines (discovered 2 exits: [*Mat] / [*Sub]) -10/Subcaves (discovered 2 exits: [*Mat] / Rec) History --------- Turn | Location | Event 5 | -11/Scrapyard | Discovered new exit (range 15) 75 | -11/Scrapyard | Entered Materials 268 | -10/Materials | Discovered new exit (range 15) 292 | -10/Materials | Entered Mines 303 | -10/Mines | Build established: Mutant 378 | -10/Mines | Assisted by bots powering up and referring to "LRC-V3" 400 | -10/Mines | Found a hidden stash of uninstalled traps 439 | -10/Mines | Discovered new exit (range 16) 461 | -10/Mines | Received a Rocket Launcher from a helpful Derelict 498 | -10/Mines | Discovered new exit (range 5) 506 | -10/Mines | Entered Subcaves 506 | -10/Subcaves | Accompanied by 3 allies 507 | -10/Subcaves | Identified exit to Recycling 512 | -10/Subcaves | Discovered new exit (range 10) 613 | -10/Subcaves | Ambushed by angry Subdweller bent on revenge 936 | -10/Subcaves | A swath of the cavern ceiling suddenly collapsed 1070 | -10/Subcaves | Core integrity fell below 50% 1078 | -10/Subcaves | Core integrity fell below 20% 1081 | -10/Subcaves | Destroyed by NV-FM8(R) with Subdweller Beam Cannon Last Messages --------------- 01000_ Sub. Monowheel melted. 01000_ 71-RGP(R) destroyed. 01005_ Acquired Imp. Heat Sink. 01006_ Acquired 68 matter. 01018_ 0Z-CEZ(z): "She is not going to be happy we haven't found any suitable candidates yet." 01042_ Subatomizers dissect the Lgt. Nuclear Core. 01045_ Critical hit (Meltdown: +250). 01052_ Subatomizers dissect the Lgt. Nuclear Core. 01053_ Ion Engine destroyed. 01053_ EM Pulse Gun destroyed. 01055_ Lgt. Assault Rifle destroyed. 01062_ Subatomizers dissect the Lgt. Nuclear Core. 01063_ Aluminum Leg destroyed. 01072_ Subatomizers dissect the Lgt. Nuclear Core. 01073_ EM Pulse Gun destroyed. Map ----- +----------------------------------------------------+ | ???????????????????????????????????????# # ##? | | ??????????????????????????????????????## ##? | | ?????????????????????????????????????## ## | | ????????????????????????????????????## # | | ???????????????????????????????????## | | ???????????????????????????????????# | | ???????????????????????????????????# | | ???????????????????????????????????# | | ???????????????????????????????????## ## | | ????????????????????????????????????#### #? | | ???????????????????????????????????????## #? | | ????????????????????????????????????????## ##? | | ?????????????????????????????????????????# #?? | | ????????????????????####??????####??????## ## | | ???????????????????##""######## ##?????# | | ???????????????????# """##"" ## ##????## # | | ????????????????????#" #?#"" ##????# # ## | | ???????????????????## #?# #????# ###? | | ???????????????#####"" ###!& #?#### ###?? | | ???????????????# " " ] ### ## ## ?? | | ???????????????#""""" """""" * ## ## ## ? | | ????????? ????##"""" """" ##### ## ? | | ?????????# ## """ " "" "#???# # # # | | ?????????# """" "" ""#???## ### ## # | | ??????????? """ R """#????## #?### | | ????????# " ### @ "#?????## ##???? | | ???????????????????#####""###??????## ##????? # | | ???????????????????????#""#?????????###?????? ## | | ??>????????????????????# #????????????????? #? | | ??????????????????????? #????????????????? ? | | ?????????????????????? #????????????????? ? | | ????????????????????? ###????????????????? ? | | ????????????????????## #??????????????????? ? | | ?????????????????????# ??????????????????? ? | | ?????????????????????# ??????????????????? ??? | | ????????????????????? ???????????????????????? | | ????????????????????? ???????????????????????? | | ????????????????????# ???????????????????????? | | ????????????????????# ## ???????????????????????? | | ????????????????????# ??#???????????????????????? | | ?????????????????????? ??????????????????????????? | | ?????????????????????????????????????????????????? | | ?????????????????????????????????????????????????? | | ?????????????????????????????????????????????????? | | ?????????????????????????????????????????????????? | | ?????????????????????????????????????????????????? | | ?????????????????????????????????????????????????? | | ?????????????????????????????????????????????????? | | ?????????????????????????????????????????????????? | | ?????????????????????????????????????????????????? | +----------------------------------------------------+ Best States ------------- Heat Dissipation 25 Energy Generation 10 Energy Capacity 250 Matter Stores 300 Matter Capacity 300 Sight Range 21 Terrain Scan Density 10 Evasion (%) 50 Item Schematics ----------------- None Robot Schematics ------------------ None Fabricated ------------ Nothing Alien Tech Used ----------------- None Achievements -------------- None Challenges ------------ None Game ------ Seed CouplerCombatTendrils Manual? 0 Play Time 00:11:04 Cumulative 415.9 hours Start 2024.05.30 @ 01:15:34 End 2024.05.30 @ 01:22:52 Sessions 1 Manual Loads 0 Difficulty Rogue Special Mode None Game No. 475 Rogue 475 Adventurer 0 Explorer 0 Win Type - Total 34 Types 22/3/8/1/0/0/0/0/0 Lore% 73 Gallery% 82 Achievement% 62 Wizard Run 0 Options --------- Layout 1 ASCII 1 Keyboard 1 Movement Numpad Keybinds 0 Fullscreen 1 Font 24/Tamsyn Map View 50x35 Zoom Use 0% Tactical HUD 1 Map Filters NONE Filters NONE Steam 1 RUN: d3958a94-39ea-4422-8abd-8b43834a7b31